[Event "Rapid della Domenica"]
[Site "Chess.com"]
[Date "2020.04.19"]
[Round "3"]
[White "OMatteoWuO"]
[Black "BAKR1980"]
[Result "0-1"]
[WhiteElo "1168"]
[BlackElo "1543"]
[TimeControl "720+3"]
[EndTime "7:00:28 PDT"]
[Termination "BAKR1980 ha vinto per abbandono"]

1. d4 {[%clk 0:12:02.9]} 1... Nf6 {[%clk 0:12:00.7]} 2. c4 {[%clk 0:12:03.7]}
2... d5 {[%clk 0:12:01.2]} 3. Nc3 {[%clk 0:12:02.6]} 3... c6 {[%clk 0:12:00.1]}
4. Nf3 {[%clk 0:12:00]} 4... Bg4 {[%clk 0:11:56.7]} 5. e3 {[%clk 0:12:01.9]}
5... e6 {[%clk 0:11:57.7]} 6. Be2 {[%clk 0:12:03.1]} 6... Bd6 {[%clk 0:11:52.4]}
7. h3 {[%clk 0:11:47.6]} 7... Bh5 {[%clk 0:11:50.7]} 8. cxd5 {[%clk 0:11:35.5]}
8... cxd5 {[%clk 0:11:15.7]} 9. b3 {[%clk 0:11:06.1]} 9... Qa5 {[%clk
0:11:06.2]} 10. Bd2 {[%clk 0:10:01.6]} 10... Bb4 {[%clk 0:11:05.7]} 11. Qc2
{[%clk 0:09:42.3]} 11... Nbd7 {[%clk 0:11:02.5]} 12. O-O {[%clk 0:09:42.7]}
12... Rc8 {[%clk 0:10:52.2]} 13. Rac1 {[%clk 0:09:13.3]} 13... Ne4 {[%clk
0:10:36]} 14. Qb2 {[%clk 0:08:34.6]} 14... Nxc3 {[%clk 0:09:09.2]} 15. Rxc3
{[%clk 0:08:05.7]} 15... Bxc3 {[%clk 0:09:03.7]} 16. Bxc3 {[%clk 0:08:02.3]}
16... Qxc3 {[%clk 0:09:02.4]} 17. Qxc3 {[%clk 0:07:35.5]} 17... Rxc3 {[%clk
0:09:02.2]} 18. Bb5 {[%clk 0:07:37.2]} 18... Bxf3 {[%clk 0:08:56.6]} 19. gxf3
{[%clk 0:07:27.7]} 19... Rc2 {[%clk 0:08:57.3]} 20. a4 {[%clk 0:07:01.6]} 20...
a6 {[%clk 0:08:56.4]} 21. Bxd7+ {[%clk 0:06:59.5]} 21... Kxd7 {[%clk 0:08:56.9]}
22. Rb1 {[%clk 0:06:59.2]} 22... Rhc8 {[%clk 0:08:56.6]} 23. Kg2 {[%clk
0:06:57.2]} 23... Rd2 {[%clk 0:08:55.1]} 24. Kg3 {[%clk 0:06:40.3]} 24... Rcc2
{[%clk 0:08:54.2]} 25. Rf1 {[%clk 0:06:40.9]} 25... Rb2 {[%clk 0:08:49.6]} 26.
f4 {[%clk 0:06:42]} 0-1

[Event "Rapid della Domenica"]
[Site "Chess.com"]
[Date "2020.04.19"]
[Round "3"]
[White "Ollarov"]
[Black "ferrariand"]
[Result "1-0"]
[WhiteElo "2031"]
[BlackElo "1576"]
[TimeControl "720+3"]
[EndTime "7:02:13 PDT"]
[Termination "Ollarov ha vinto per abbandono"]

1. e4 {[%clk 0:12:02.9]} 1... e5 {[%clk 0:12:00.7]} 2. Nf3 {[%clk 0:12:04.3]}
2... Nc6 {[%clk 0:11:58]} 3. Bb5 {[%clk 0:12:05.4]} 3... Nf6 {[%clk 0:11:54.9]}
4. O-O {[%clk 0:12:06.6]} 4... Nxe4 {[%clk 0:11:55.4]} 5. d4 {[%clk 0:12:07]}
5... Nd6 {[%clk 0:11:54]} 6. Bxc6 {[%clk 0:12:08.6]} 6... dxc6 {[%clk
0:11:54.7]} 7. dxe5 {[%clk 0:12:11.2]} 7... Nf5 {[%clk 0:11:55.9]} 8. Qxd8+
{[%clk 0:12:13.6]} 8... Kxd8 {[%clk 0:11:57.3]} 9. h3 {[%clk 0:12:16.2]} 9...
Be6 {[%clk 0:11:33.5]} 10. Nc3 {[%clk 0:11:01.4]} 10... h6 {[%clk 0:11:32.9]}
11. g4 {[%clk 0:10:32.2]} 11... Ne7 {[%clk 0:11:29.4]} 12. Nd4 {[%clk
0:10:23.6]} 12... Bc4 {[%clk 0:10:32.9]} 13. Rd1 {[%clk 0:09:25.6]} 13... Nd5
{[%clk 0:10:32.1]} 14. Ne4 {[%clk 0:09:19.4]} 14... Be7 {[%clk 0:10:02.7]} 15.
b3 {[%clk 0:09:11.7]} 15... Ba6 {[%clk 0:08:28]} 16. c4 {[%clk 0:09:07.4]} 16...
Nb4 {[%clk 0:08:06.3]} 17. Ne6+ {[%clk 0:09:00.9]} 17... Kc8 {[%clk 0:07:56.6]}
18. Nxg7 {[%clk 0:08:52]} 18... Rd8 {[%clk 0:06:28.5]} 19. Rxd8+ {[%clk
0:08:18]} 19... Kxd8 {[%clk 0:06:07]} 20. Bxh6 {[%clk 0:08:18.8]} 20... Bf8
{[%clk 0:05:28.5]} 21. Ne6+ {[%clk 0:07:56.2]} 21... fxe6 {[%clk 0:05:29]} 22.
Bxf8 {[%clk 0:07:58.1]} 22... Ke8 {[%clk 0:05:25.9]} 23. Bxb4 {[%clk 0:07:59]}
1-0

[Event "Rapid della Domenica"]
[Site "Chess.com"]
[Date "2020.04.19"]
[Round "3"]
[White "crippo"]
[Black "caramante"]
[Result "1/2-1/2"]
[WhiteElo "1613"]
[BlackElo "1527"]
[TimeControl "720+3"]
[EndTime "7:06:10 PDT"]
[Termination "Patta d'accordo"]

1. e4 {[%clk 0:12:02.9]} 1... c5 {[%clk 0:12:00.4]} 2. Nc3 {[%clk 0:12:02.8]}
2... d6 {[%clk 0:12:02.2]} 3. Nf3 {[%clk 0:12:03.2]} 3... e6 {[%clk 0:12:04.2]}
4. Be2 {[%clk 0:12:04]} 4... Nf6 {[%clk 0:12:06]} 5. d3 {[%clk 0:12:06]} 5... a6
{[%clk 0:12:07.2]} 6. O-O {[%clk 0:12:06.7]} 6... Be7 {[%clk 0:12:09.1]} 7. h3
{[%clk 0:12:08]} 7... Nc6 {[%clk 0:12:10.8]} 8. Be3 {[%clk 0:12:08.1]} 8... Bd7
{[%clk 0:12:12.6]} 9. Nh2 {[%clk 0:12:09.1]} 9... O-O {[%clk 0:12:13.3]} 10. f4
{[%clk 0:12:08.4]} 10... b5 {[%clk 0:12:14.3]} 11. Bf2 {[%clk 0:12:09.3]} 11...
Qc7 {[%clk 0:12:08.1]} 12. Ng4 {[%clk 0:12:03.5]} 12... Nxg4 {[%clk 0:11:57.3]}
13. Bxg4 {[%clk 0:12:04.2]} 13... Nd4 {[%clk 0:11:49.1]} 14. Ne2 {[%clk
0:11:58]} 14... e5 {[%clk 0:11:45.3]} 15. f5 {[%clk 0:11:57.9]} 15... Bf6 {[%clk
0:11:35.6]} 16. c3 {[%clk 0:11:58.1]} 16... Nc6 {[%clk 0:11:36]} 17. Ng3 {[%clk
0:11:57.4]} 17... Bh4 {[%clk 0:11:30.1]} 18. Nh5 {[%clk 0:11:49.4]} 18... Bxf2+
{[%clk 0:11:30.5]} 19. Rxf2 {[%clk 0:11:50.5]} 19... f6 {[%clk 0:11:32.1]} 20.
h4 {[%clk 0:11:14.7]} 20... Be8 {[%clk 0:11:33.4]} 21. Bh3 {[%clk 0:11:15.3]}
21... Qf7 {[%clk 0:11:28]} 22. Ng3 {[%clk 0:11:14.1]} 22... Kh8 {[%clk
0:11:22.3]} 23. Bg4 {[%clk 0:11:15]} 23... Rg8 {[%clk 0:11:09.5]} 24. Kh2 {[%clk
0:11:03.5]} 24... Ra7 {[%clk 0:11:07.6]} 25. Qd2 {[%clk 0:11:04.5]} 25... b4
{[%clk 0:10:44]} 26. Rh1 {[%clk 0:11:02.8]} 26... bxc3 {[%clk 0:10:34.1]} 27.
bxc3 {[%clk 0:11:03.3]} 27... Rb7 {[%clk 0:10:31.2]} 28. Qc2 {[%clk 0:10:17.2]}
28... Rd7 {[%clk 0:10:29]} 29. Rb1 {[%clk 0:10:16.5]} 29... d5 {[%clk
0:10:27.7]} 30. Rb6 {[%clk 0:10:14.9]} 30... Nd8 {[%clk 0:10:20.4]} 31. Rxa6
{[%clk 0:10:11.2]} 31... Ra7 {[%clk 0:10:06.7]} 32. Rxa7 {[%clk 0:09:48.2]}
32... Qxa7 {[%clk 0:10:05.4]} 33. Bh5 {[%clk 0:09:17.6]} 33... Bxh5 {[%clk
0:10:00.9]} 34. Nxh5 {[%clk 0:09:18.8]} 34... dxe4 {[%clk 0:10:02.3]} 35. dxe4
{[%clk 0:09:18.7]} 35... Nf7 {[%clk 0:09:58.2]} 36. Rd2 {[%clk 0:09:17.5]} 36...
Nh6 {[%clk 0:09:58.3]} 37. Kh3 {[%clk 0:09:16]} 37... c4 {[%clk 0:09:53.6]} 38.
Re2 {[%clk 0:08:26.8]} 38... Rd8 {[%clk 0:09:35.4]} 39. g3 {[%clk 0:08:20.1]}
39... Rd3 {[%clk 0:09:26]} 40. Qc1 {[%clk 0:08:20.5]} 40... Qf7 {[%clk 0:09:12]}
41. Nf4 {[%clk 0:07:59.3]} 41... exf4 {[%clk 0:08:51.2]} 42. Qxf4 {[%clk
0:07:58.4]} 42... Rxc3 {[%clk 0:08:18.6]} 43. Rb2 {[%clk 0:07:58.8]} 43... Ng8
{[%clk 0:07:58.5]} 44. a4 {[%clk 0:07:25.2]} 44... h5 {[%clk 0:07:50.1]} 45. a5
{[%clk 0:07:25.5]} 45... Qa7 {[%clk 0:07:48.2]} 46. Ra2 {[%clk 0:07:11]} 46...
Rb3 {[%clk 0:07:31.9]} 47. e5 {[%clk 0:06:40.7]} 47... c3 {[%clk 0:07:16.6]} 48.
Qf3 {[%clk 0:06:17.7]} 48... Qg1 {[%clk 0:06:36.6]} 49. Qxh5+ {[%clk 0:06:17]}
49... Nh6 {[%clk 0:06:37.2]} 50. Qe8+ {[%clk 0:06:10.3]} 50... Kh7 {[%clk
0:06:34.4]} 51. Qg6+ {[%clk 0:06:11.8]} 51... Kh8 {[%clk 0:06:35.4]} 52. Qe8+
{[%clk 0:06:13.4]} 52... Kh7 {[%clk 0:06:31.2]} 53. Qg6+ {[%clk 0:06:13.4]}
53... Kh8 {[%clk 0:06:28.8]} 1/2-1/2

[Event "Rapid della Domenica"]
[Site "Chess.com"]
[Date "2020.04.19"]
[Round "3"]
[White "ottovolante"]
[Black "Piccolorso"]
[Result "0-1"]
[WhiteElo "1012"]
[BlackElo "1313"]
[TimeControl "720+3"]
[EndTime "7:11:16 PDT"]
[Termination "Piccolorso ha vinto per scaccomatto"]

1. e4 {[%clk 0:12:02.9]} 1... c5 {[%clk 0:12:00]} 2. Nf3 {[%clk 0:10:54.5]} 2...
Nc6 {[%clk 0:11:59.6]} 3. Bc4 {[%clk 0:10:53.4]} 3... e6 {[%clk 0:12:00]} 4. e5
{[%clk 0:10:51.4]} 4... d5 {[%clk 0:11:48.4]} 5. Be2 {[%clk 0:10:31.7]} 5... g6
{[%clk 0:11:38.6]} 6. a3 {[%clk 0:10:18]} 6... Bg7 {[%clk 0:11:38.3]} 7. Bb5
{[%clk 0:10:10.9]} 7... Qc7 {[%clk 0:11:32.5]} 8. O-O {[%clk 0:10:05.3]} 8...
Ne7 {[%clk 0:11:32]} 9. Qe1 {[%clk 0:10:06.4]} 9... O-O {[%clk 0:11:29.2]} 10.
Bxc6 {[%clk 0:10:03.6]} 10... Nxc6 {[%clk 0:11:27.4]} 11. d3 {[%clk 0:10:04.4]}
11... Nxe5 {[%clk 0:11:26.7]} 12. Nxe5 {[%clk 0:10:05.6]} 12... Bxe5 {[%clk
0:11:24.9]} 13. g3 {[%clk 0:10:05.9]} 13... d4 {[%clk 0:11:19.4]} 14. Bf4 {[%clk
0:08:57.8]} 14... Bxf4 {[%clk 0:11:18.1]} 15. gxf4 {[%clk 0:08:58.9]} 15... Qxf4
{[%clk 0:11:20.1]} 16. Qe4 {[%clk 0:08:54.9]} 16... Qxe4 {[%clk 0:10:56.6]} 17.
dxe4 {[%clk 0:08:20]} 17... e5 {[%clk 0:10:49.7]} 18. Nd2 {[%clk 0:06:02.5]}
18... f5 {[%clk 0:10:38]} 19. f3 {[%clk 0:05:59.3]} 19... b6 {[%clk 0:10:37]}
20. Nc4 {[%clk 0:05:58.8]} 20... Ba6 {[%clk 0:09:50.7]} 21. Nxe5 {[%clk
0:05:56.5]} 21... Bxf1 {[%clk 0:09:50.5]} 22. Rxf1 {[%clk 0:05:54.6]} 22... fxe4
{[%clk 0:09:45.8]} 23. f4 {[%clk 0:05:49.4]} 23... g5 {[%clk 0:09:40.6]} 24. f5
{[%clk 0:05:35.4]} 24... e3 {[%clk 0:09:39.2]} 25. f6 {[%clk 0:05:33.1]} 25...
Rae8 {[%clk 0:09:36.4]} 26. f7+ {[%clk 0:05:30.3]} 26... Kg7 {[%clk 0:09:26.4]}
27. fxe8=Q {[%clk 0:05:26.2]} 27... Rxe8 {[%clk 0:09:27.6]} 28. Nd3 {[%clk
0:05:20.7]} 28... c4 {[%clk 0:09:28.5]} 29. Nb4 {[%clk 0:05:18.6]} 29... d3
{[%clk 0:09:29.9]} 30. cxd3 {[%clk 0:05:19.8]} 30... a5 {[%clk 0:09:24.7]} 31.
Nd5 {[%clk 0:05:17.1]} 31... cxd3 {[%clk 0:09:23.1]} 32. Nxe3 {[%clk 0:04:55.7]}
32... Rxe3 {[%clk 0:09:23.4]} 33. Rd1 {[%clk 0:04:53.7]} 33... Kf6 {[%clk
0:09:19.3]} 34. Kf2 {[%clk 0:04:54.2]} 34... Re2+ {[%clk 0:09:15.3]} 35. Kg1
{[%clk 0:04:50.5]} 35... Rxb2 {[%clk 0:09:17]} 36. Rxd3 {[%clk 0:04:51.1]} 36...
a4 {[%clk 0:09:02.5]} 37. Rd6+ {[%clk 0:04:45.4]} 37... Kf5 {[%clk 0:09:00.1]}
38. Rd5+ {[%clk 0:04:45.8]} 38... Kg4 {[%clk 0:08:56.5]} 39. Rd4+ {[%clk
0:04:44.3]} 39... Kh5 {[%clk 0:08:55.8]} 40. h3 {[%clk 0:04:40.3]} 40... Rb3
{[%clk 0:08:56.5]} 41. Kg2 {[%clk 0:04:36.1]} 41... Rxa3 {[%clk 0:08:56.3]} 42.
Rd7 {[%clk 0:04:32.1]} 42... h6 {[%clk 0:08:26.5]} 43. Rd6 {[%clk 0:04:24.9]}
43... b5 {[%clk 0:08:23.7]} 44. Rb6 {[%clk 0:04:24.8]} 44... Rb3 {[%clk
0:08:22.3]} 45. Kf2 {[%clk 0:04:23.1]} 45... Rxh3 {[%clk 0:08:11.5]} 46. Rxb5
{[%clk 0:04:24]} 46... Ra3 {[%clk 0:08:12.9]} 47. Rb4 {[%clk 0:04:23.2]} 47...
g4 {[%clk 0:08:07]} 48. Rf4 {[%clk 0:03:02.8]} 48... Kg5 {[%clk 0:08:00.9]} 49.
Rd4 {[%clk 0:02:59.8]} 49... Rf3+ {[%clk 0:07:45.3]} 50. Ke2 {[%clk 0:02:59.9]}
50... a3 {[%clk 0:07:43.7]} 51. Ra4 {[%clk 0:02:58.3]} 51... h5 {[%clk
0:07:33.7]} 52. Ra5+ {[%clk 0:02:57.2]} 52... Kh4 {[%clk 0:07:30.6]} 53. Ra4
{[%clk 0:02:52.9]} 53... Kg3 {[%clk 0:07:29.1]} 54. Kd2 {[%clk 0:02:52.8]} 54...
h4 {[%clk 0:07:29.9]} 55. Kc2 {[%clk 0:02:54.8]} 55... h3 {[%clk 0:07:19.3]} 56.
Kc1 {[%clk 0:02:55.2]} 56... h2 {[%clk 0:07:20.3]} 57. Kb1 {[%clk 0:02:55.5]}
57... Rf1+ {[%clk 0:07:19.3]} 58. Ka2 {[%clk 0:02:55.3]} 58... h1=Q {[%clk
0:07:20.2]} 59. Kb3 {[%clk 0:02:56.1]} 59... Qf3+ {[%clk 0:07:15.1]} 60. Kc4
{[%clk 0:02:56.5]} 60... Qe4+ {[%clk 0:07:11.4]} 61. Kb5 {[%clk 0:02:58]} 61...
Qxa4+ {[%clk 0:07:05.9]} 62. Kxa4 {[%clk 0:02:59.1]} 62... Ra1 {[%clk
0:07:07.6]} 63. Kb3 {[%clk 0:03:00.4]} 63... Kf3 {[%clk 0:07:05.2]} 64. Kc2
{[%clk 0:03:00.6]} 64... g3 {[%clk 0:07:00.4]} 65. Kd2 {[%clk 0:03:01.4]} 65...
Ra2+ {[%clk 0:07:00.3]} 66. Kc1 {[%clk 0:03:03]} 66... Re2 {[%clk 0:07:00.3]}
67. Kb1 {[%clk 0:03:04.9]} 67... a2+ {[%clk 0:07:00]} 68. Ka1 {[%clk 0:03:06]}
68... Re1+ {[%clk 0:06:58.3]} 69. Kxa2 {[%clk 0:03:06.9]} 69... Re3 {[%clk
0:06:59.5]} 70. Kb2 {[%clk 0:03:07.4]} 70... g2 {[%clk 0:07:01.1]} 71. Kc2
{[%clk 0:03:09.4]} 71... g1=Q {[%clk 0:07:00.1]} 72. Kb2 {[%clk 0:03:07.1]}
72... Qf2+ {[%clk 0:07:00.9]} 73. Kb1 {[%clk 0:03:08.6]} 73... Re1# {[%clk
0:06:59.2]} 0-1

[Event "Rapid della Domenica"]
[Site "Chess.com"]
[Date "2020.04.19"]
[Round "3"]
[White "Mrtre7"]
[Black "moha1812med"]
[Result "1-0"]
[WhiteElo "1430"]
[BlackElo "926"]
[TimeControl "720+3"]
[EndTime "7:17:33 PDT"]
[Termination "Mrtre7 ha vinto per abbandono"]

1. d4 {[%clk 0:12:02.9]} 1... Nf6 {[%clk 0:11:49]} 2. c4 {[%clk 0:12:04.3]} 2...
g6 {[%clk 0:11:42.4]} 3. Nc3 {[%clk 0:12:05.6]} 3... Bg7 {[%clk 0:11:40.4]} 4.
e4 {[%clk 0:12:07.4]} 4... d6 {[%clk 0:11:35]} 5. Nf3 {[%clk 0:12:08.2]} 5...
O-O {[%clk 0:11:17.4]} 6. Be2 {[%clk 0:12:08.8]} 6... Nbd7 {[%clk 0:11:18.8]} 7.
O-O {[%clk 0:12:08.9]} 7... e5 {[%clk 0:11:16.9]} 8. Be3 {[%clk 0:12:07.5]} 8...
Ng4 {[%clk 0:10:37.7]} 9. Bg5 {[%clk 0:11:55.9]} 9... Bf6 {[%clk 0:10:20.5]} 10.
Bxf6 {[%clk 0:11:54.6]} 10... Ngxf6 {[%clk 0:10:21.4]} 11. Qd2 {[%clk
0:11:45.2]} 11... Ng4 {[%clk 0:09:42.9]} 12. Rad1 {[%clk 0:11:00.1]} 12... exd4
{[%clk 0:08:28]} 13. Nxd4 {[%clk 0:09:12.1]} 13... Nde5 {[%clk 0:07:30.4]} 14.
h3 {[%clk 0:09:04.8]} 14... c5 {[%clk 0:06:26]} 15. Ndb5 {[%clk 0:08:45.8]}
15... Nf6 {[%clk 0:05:50.2]} 16. Nxd6 {[%clk 0:07:21.6]} 16... Qa5 {[%clk
0:04:03.6]} 17. Qg5 {[%clk 0:06:10.1]} 17... Ned7 {[%clk 0:02:21.3]} 18. f4
{[%clk 0:04:06.5]} 18... Qb6 {[%clk 0:00:22.4]} 19. e5 {[%clk 0:03:57.6]} 19...
Ne8 {[%clk 0:00:14.5]} 20. Nxc8 {[%clk 0:03:56.8]} 20... Rxc8 {[%clk 0:00:15.6]}
21. Rxd7 {[%clk 0:03:58.1]} 21... Qe6 {[%clk 0:00:11.9]} 22. Rfd1 {[%clk
0:03:48]} 22... Ng7 {[%clk 0:00:04.9]} 23. Bg4 {[%clk 0:03:41.8]} 23... Qa6
{[%clk 0:00:05.4]} 24. Rd8 {[%clk 0:02:13.1]} 24... Rcxd8 {[%clk 0:00:06.1]} 25.
Rxd8 {[%clk 0:02:12.7]} 25... Rxd8 {[%clk 0:00:07.5]} 26. Qxd8+ {[%clk
0:02:13.8]} 26... Ne8 {[%clk 0:00:08.4]} 27. Qxe8+ {[%clk 0:02:15.7]} 27... Kg7
{[%clk 0:00:10.2]} 28. Nd5 {[%clk 0:01:45.9]} 28... h5 {[%clk 0:00:11.5]} 29.
Bf3 {[%clk 0:01:42]} 29... Qxa2 {[%clk 0:00:11]} 30. Qe7 {[%clk 0:01:24.9]}
30... Qb1+ {[%clk 0:00:09]} 31. Kh2 {[%clk 0:01:24.6]} 31... Qf5 {[%clk
0:00:10.5]} 32. Qf6+ {[%clk 0:01:25.7]} 32... Qxf6 {[%clk 0:00:09.2]} 33. Nxf6
{[%clk 0:01:23.2]} 33... Kf8 {[%clk 0:00:11.4]} 34. Bxb7 {[%clk 0:01:24.7]}
34... Ke7 {[%clk 0:00:12.9]} 35. Kg3 {[%clk 0:01:26.1]} 35... Ke6 {[%clk
0:00:14.8]} 36. Kf3 {[%clk 0:01:25.8]} 36... Kf5 {[%clk 0:00:16.2]} 37. g4+
{[%clk 0:01:23.7]} 37... hxg4+ {[%clk 0:00:17.1]} 38. hxg4+ {[%clk 0:01:25.1]}
38... Ke6 {[%clk 0:00:17.9]} 39. Bc8+ {[%clk 0:01:24.8]} 39... Ke7 {[%clk
0:00:17.3]} 40. Ke4 {[%clk 0:01:26.8]} 40... Kd8 {[%clk 0:00:15.8]} 41. Bd7
{[%clk 0:01:25.7]} 41... Kc7 {[%clk 0:00:16.6]} 42. Kd5 {[%clk 0:01:27]} 42...
g5 {[%clk 0:00:15.6]} 43. fxg5 {[%clk 0:01:26.4]} 43... a5 {[%clk 0:00:16]} 44.
Kxc5 {[%clk 0:01:27.6]} 44... a4 {[%clk 0:00:17.6]} 45. Bxa4 {[%clk 0:01:28.5]}
45... Kb7 {[%clk 0:00:17.9]} 46. b4 {[%clk 0:01:29.7]} 46... Ka6 {[%clk
0:00:18.6]} 47. Be8 {[%clk 0:01:27.8]} 47... Kb7 {[%clk 0:00:18.5]} 48. Bxf7
{[%clk 0:01:28.3]} 48... Kc8 {[%clk 0:00:19.1]} 49. e6 {[%clk 0:01:27.8]} 49...
Kd8 {[%clk 0:00:19.2]} 50. Kd6 {[%clk 0:01:26.4]} 50... Kc8 {[%clk 0:00:19.3]}
51. e7 {[%clk 0:01:21.6]} 51... Kb7 {[%clk 0:00:14.8]} 52. e8=Q {[%clk
0:01:20.9]} 52... Ka7 {[%clk 0:00:10.5]} 1-0

[Event "Rapid della Domenica"]
[Site "Chess.com"]
[Date "2020.04.19"]
[Round "4"]
[White "moha1812med"]
[Black "FrancescoZasa"]
[Result "1-0"]
[WhiteElo "1011"]
[BlackElo "690"]
[TimeControl "720+3"]
[EndTime "7:28:40 PDT"]
[Termination "moha1812med ha vinto per scaccomatto"]

1. d4 {[%clk 0:12:02.9]} 1... d5 {[%clk 0:12:01.8]} 2. c4 {[%clk 0:12:02.2]}
2... dxc4 {[%clk 0:11:51.8]} 3. e3 {[%clk 0:11:55.9]} 3... b5 {[%clk 0:11:49]}
4. Nc3 {[%clk 0:11:53.4]} 4... a6 {[%clk 0:11:47.9]} 5. a3 {[%clk 0:11:53.6]}
5... Nf6 {[%clk 0:11:49.4]} 6. Nf3 {[%clk 0:11:52.7]} 6... e6 {[%clk 0:11:49]}
7. Be2 {[%clk 0:11:54]} 7... h6 {[%clk 0:11:41.8]} 8. O-O {[%clk 0:11:52.4]}
8... g5 {[%clk 0:11:42.3]} 9. h3 {[%clk 0:11:48.3]} 9... Bd6 {[%clk 0:11:39.8]}
10. e4 {[%clk 0:11:41.6]} 10... O-O {[%clk 0:11:32.5]} 11. e5 {[%clk 0:11:42.7]}
11... Be7 {[%clk 0:11:20.3]} 12. exf6 {[%clk 0:11:41.9]} 12... Bxf6 {[%clk
0:11:21.4]} 13. Qc2 {[%clk 0:10:25.4]} 13... a5 {[%clk 0:11:12.3]} 14. Nxb5
{[%clk 0:10:18.2]} 14... Qxd4 {[%clk 0:11:05.5]} 15. Nfxd4 {[%clk 0:10:16.5]}
15... Bxd4 {[%clk 0:11:04.3]} 16. Qe4 {[%clk 0:10:13.2]} 16... Rd8 {[%clk
0:10:59.4]} 17. Qxa8 {[%clk 0:10:02.6]} 17... Bg7 {[%clk 0:09:55.1]} 18. Qxb8
{[%clk 0:09:41.6]} 18... Bf6 {[%clk 0:09:43.4]} 19. Rd1 {[%clk 0:09:02.1]} 19...
Rxd1+ {[%clk 0:09:33.5]} 20. Bxd1 {[%clk 0:09:03.6]} 20... c6 {[%clk 0:09:21.3]}
21. Qxc8+ {[%clk 0:09:04.3]} 21... Kg7 {[%clk 0:09:21.6]} 22. Nd6 {[%clk
0:08:57.9]} 22... Be5 {[%clk 0:09:14.9]} 23. Ne8+ {[%clk 0:08:27.7]} 23... Kg6
{[%clk 0:09:02.6]} 24. Bc2+ {[%clk 0:08:13.5]} 24... Kh5 {[%clk 0:09:02]} 25.
Qa6 {[%clk 0:07:46.8]} 25... c3 {[%clk 0:08:43.4]} 26. Qe2+ {[%clk 0:07:38.7]}
26... Kh4 {[%clk 0:08:37.3]} 27. Qg4# {[%clk 0:07:39.4]} 1-0

[Event "Rapid della Domenica"]
[Site "Chess.com"]
[Date "2020.04.19"]
[Round "4"]
[White "MartinoMontepietra"]
[Black "OMatteoWuO"]
[Result "0-1"]
[WhiteElo "717"]
[BlackElo "1172"]
[TimeControl "720+3"]
[EndTime "7:30:26 PDT"]
[Termination "OMatteoWuO ha vinto per scaccomatto"]

1. e4 {[%clk 0:12:00.2]} 1... c5 {[%clk 0:11:59.8]} 2. Nc3 {[%clk 0:11:55.3]}
2... Nc6 {[%clk 0:11:53.9]} 3. b3 {[%clk 0:11:49.1]} 3... Nf6 {[%clk 0:11:43.8]}
4. a3 {[%clk 0:11:44.6]} 4... d6 {[%clk 0:11:31.6]} 5. b4 {[%clk 0:11:40.2]}
5... cxb4 {[%clk 0:11:15]} 6. axb4 {[%clk 0:11:35.3]} 6... Nxb4 {[%clk
0:11:15.9]} 7. Ra4 {[%clk 0:11:24.4]} 7... Nc6 {[%clk 0:11:07.3]} 8. Bb5 {[%clk
0:11:10]} 8... Bd7 {[%clk 0:11:03]} 9. Ba3 {[%clk 0:10:54.6]} 9... a6 {[%clk
0:10:58.7]} 10. Bc4 {[%clk 0:10:39]} 10... b5 {[%clk 0:10:56.8]} 11. Nxb5 {[%clk
0:09:53.9]} 11... axb5 {[%clk 0:10:53.8]} 12. Bxb5 {[%clk 0:09:42.5]} 12... Rxa4
{[%clk 0:10:54.6]} 13. Bxa4 {[%clk 0:09:42.5]} 13... Qa5 {[%clk 0:10:56.1]} 14.
Ne2 {[%clk 0:09:38.3]} 14... Qxa4 {[%clk 0:10:51.4]} 15. Bb2 {[%clk 0:09:30.9]}
15... Qxe4 {[%clk 0:10:40.5]} 16. Qa1 {[%clk 0:09:27.6]} 16... e6 {[%clk
0:10:32.7]} 17. O-O {[%clk 0:09:11.5]} 17... Qxe2 {[%clk 0:10:30.7]} 18. Bc1
{[%clk 0:09:03.7]} 18... Ne4 {[%clk 0:10:22]} 19. d3 {[%clk 0:08:50.6]} 19...
Nd2 {[%clk 0:10:00.3]} 20. Qc3 {[%clk 0:08:31.4]} 20... Nxf1 {[%clk 0:09:58.8]}
21. Qd2 {[%clk 0:07:04.5]} 21... Nxd2 {[%clk 0:09:57]} 22. h3 {[%clk 0:06:37.7]}
22... Qf1+ {[%clk 0:09:46.6]} 23. Kh2 {[%clk 0:06:32.6]} 23... Nf3+ {[%clk
0:09:44.5]} 24. gxf3 {[%clk 0:06:23.7]} 24... Qxf2+ {[%clk 0:09:36.5]} 25. Kh1
{[%clk 0:05:53.4]} 25... e5 {[%clk 0:09:25.1]} 26. d4 {[%clk 0:05:33.3]} 26...
Qxf3+ {[%clk 0:09:24.1]} 27. Kh2 {[%clk 0:05:20.5]} 27... Bxh3 {[%clk 0:09:24]}
28. dxe5 {[%clk 0:05:12.8]} 28... Qg2# {[%clk 0:09:24.4]} 0-1